Cogmind - Beta 14 X2 @@@ ROGUE MODE // 2024.07.31 @ 13:11:34 Player: Schmee Result: Destroyed by P-70 Sage with High-powered Shock Rifle Performance ------------- Evolutions (5) 2500 Regions Visited (9) 1800 Robots Destroyed (235) 1175 Value Destroyed (8008) 8008 Prototype IDs (4) 80 Alien Tech Used (0) 0 Bonus (4904) 4904 TOTAL SCORE: 18467 Bonus ------- Triggered High Security 500 High Alert Combat Kills 2177 Follower Combat Kills 1791 Built Enhanced Grunts 300 A7 Reached Mainframe 300 Met R17 at Cetus 500 Friendly Fire -664 Cogmind --------- Core Integrity 0/1000 Matter 300/300 Energy 100/100 System Corruption 20% Temperature Cool (0) Movement Core (50) Location -5/Factory Parts ------- > --- POWER (1) -------- (None) > --- PROPULSION (5) --- (None) > --- UTILITY (8) ------ Enhanced Optical Array Advanced Targeting Computer Core Analyzer > --- WEAPON (3) ------- (None) > --- INVENTORY (5) ---- Antimatter Reactor Advanced Energy Well (500) Improved Weapon Cycler Recalibrator Phasing Sabre Peak State ------------ > --- POWER ------------ Quantum Reactor > --- PROPULSION ------- Armored Medium Treads Centrium Heavy Treads Centrium Heavy Treads > --- UTILITY ---------- Coolant Injector Huge Storage Unit Advanced Energy Well Enhanced Optical Array Advanced Targeting Computer Advanced Targeting Computer Improved Weapon Cycler Centrium Medium Armor Plating > --- WEAPON ----------- Coil Gun Advanced KE Penetrator Advanced KE Penetrator > --- INVENTORY -------- Reinforced Deuterium Engine Neutrino Core Medium Treads Improved Medium Treads Armored Medium Treads Armored Medium Treads Compact Wheel High-capacity Matter Pod Advanced Sensor Array Advanced Salvage Targeting Computer Recoil Nullifier Transmission Jammer Improved Medium Armor Plating Layered Medium Armor Plating Centrium Medium Armor Plating Focal Shield Advanced Shield Generator Long-range Tractor Beam Recalibrator Gauss Rifle Coil Gun Coil Gun Enhanced Gauss Cannon Rocket Launcher Phasing Sabre [Rating: 122] Favorites ----------- Power Ion Engine Engine Ion Engine Power Core Light Fission Core Reactor Quantum Reactor Propulsion Advanced Treads Treads Advanced Treads Leg Aluminum Leg Wheel Wheel Utility Advanced Targeting Computer Device Coolant Injector Storage Huge Storage Unit Processor Advanced Targeting Computer Hackware Improved Hacking Suite Protection Hardened Light Armor Plating Weapon Advanced Assault Cannon Ballistic Gun Advanced KE Penetrator Ballistic Cannon Advanced Assault Cannon Launcher Rocket Launcher Impact Weapon Flail Slashing Weapon Great Axe Build | -11 -10 -9 -9 -8 -7 -6 -6 -6 -5 ------- Run | Yrd Mat Mat Min Mat Fac Fac Ext Cet Fac Slots Evolved 10 | . . 2 . 2 2 2 . . 2 Power . | . . . . . . . . . . Propulsion 3 | . . . . 1 1 1 . . . Utility 6 | . . 2 . 1 1 1 . . 1 Weapon 1 | . . . . . . . . . 1 Parts Attached 288 | . 24 37 1 29 46 38 46 12 55 Power 15 | . . 5 . 1 3 2 2 1 1 Engine 10 | . . 5 . . 3 . 2 . . Core 3 | . . . . 1 . 2 . . . Reactor 2 | . . . . . . . . 1 1 Propulsion 60 | . 9 11 1 4 7 10 8 2 8 Treads 42 | . . 10 . 4 5 6 8 2 7 Leg 10 | . 9 1 . . . . . . . Wheel 8 | . . . 1 . 2 4 . . 1 Hover . | . . . . . . . . . . Flight . | . . . . . . . . . . Utility 128 | . 8 13 . 16 21 13 22 6 29 Device 77 | . 1 5 . 6 11 10 20 2 22 Storage 6 | . 1 1 . 2 1 . . . 1 Processor 6 | . . 1 . 2 1 1 . . 1 Hackware 2 | . . . . . . . . 2 . Protection 37 | . 6 6 . 6 8 2 2 2 5 Artifact . | . . . . . . . . . . Weapon 85 | . 7 8 . 8 15 13 14 3 17 Energy Gun . | . . . . . . . . . . Energy Cannon . | . . . . . . . . . . Ballistic Gun 18 | . . . . . . . 5 1 12 Ballistic Cannon 41 | . 7 6 . 6 8 7 5 1 1 Launcher 12 | . . 2 . . 2 2 4 1 1 Special Weapon . | . . . . . . . . . . Impact Weapon 2 | . . . . 2 . . . . . Slashing Weapon 12 | . . . . . 5 4 . . 3 Piercing Weapon . | . . . . . . . . . . Special Melee Weapon . | . . . . . . . . . . Unidentified Prototypes 4 | . . . . . . . . 3 1 Corrupted Parts 1 | . . . . . . . 1 . . System Corruption 10 | . . . . . . . 10 . . Parts Lost 51 | . . 6 . 1 5 7 10 . 22 Power 7 | . . 4 . . . . 1 . 2 Propulsion 17 | . . . . 1 2 5 3 . 6 Utility 14 | . . 2 . . 2 1 2 . 7 Weapon 13 | . . . . . 1 1 4 . 7 Highest Loss Streak 21 | . . 2 . 1 1 4 2 . 21 To Critical Strikes . | . . . . . . . . . . Average Slot Usage (%) 93 | . 98 97 100 99 97 92 91 83 83 Engine 5 | . 14 8 11 8 5 1 3 5 . Core 1 | . . . . . 1 4 2 . . Treads 19 | . . 18 18 27 24 16 31 22 16 Leg 4 | . 27 3 . . . . . . . Wheel 3 | . . . 3 . 3 14 . . . Device 7 | . . 8 . 8 12 9 5 5 10 Storage 8 | . 14 11 11 9 7 6 6 6 5 Processor 14 | . . 11 11 17 15 19 20 20 18 Protection 9 | . 13 13 22 9 9 5 6 4 6 Ballistic Gun 3 | . 2 . . . . . 5 6 15 Ballistic Cannon 13 | . 25 21 22 17 13 11 6 5 . Naked Turns . | . . . . . . . . . . Heaviest Build 145 | 14 38 43 43 53 111 127 130 142 145 Greatest Support 187 | 20 20 46 43 69 86 38 122 182 187 Greatest Overweight (x) 12 | . 3 1 3 1 9 12 7 1 7 Average Overweight (x) 1 | . . . 1 . 2 4 1 . . Largest Inventory Capacity 25 | . 15 15 15 15 25 25 25 25 25 Average Capacity 19 | . 12 15 15 15 18 25 25 25 24 Most Carried 25 | . 15 15 15 15 18 25 25 25 25 Average Carried 18 | . 10 14 15 14 15 22 24 23 24 Final Capacity 25 | 8 15 15 15 15 25 25 25 25 5 Final Carried 25 | 6 15 15 15 15 18 25 25 25 5 Class Distribution -------------------- 68% | Mutant 12% | Commander-Mutant 8% | Scavenger-Mutant 6% | Commander-Gunner 3% | Scavenger-Gunner Dominant Class ---------------- Mutant | -10/Materials Mutant | -9/Materials Mutant | -9/Mines Mutant | -8/Materials Mutant | -7/Factory Mutant | -6/Factory Commander-Mutant | -6/Extension Commander-Mutant | -6/Cetus Commander-Gunner | -5/Factory Resources | -11 -10 -9 -9 -8 -7 -6 -6 -6 -5 ----------- Run | Yrd Mat Mat Min Mat Fac Fac Ext Cet Fac Matter Collected 8733 | 200 428 1105 155 646 1073 1210 1718 392 1806 Remotely 3484 | . . 138 . 412 355 435 786 159 1199 Salvage Created 8193 | . 323 873 9 592 810 1456 1082 179 2869 Parts 439 | . 31 62 3 40 46 67 55 5 130 Haulers Intercepted 10 | . 2 2 . 1 1 3 1 . . Recyclers Shooed 6 | . . 1 . 1 . 3 1 . . Parts Field Recycled . | . . . . . . . . . . Retrieved Matter . | . . . . . . . . . . Parts Self-Destructed . | . . . . . . . . . . Prevented . | . . . . . . . . . . Kills | -11 -10 -9 -9 -8 -7 -6 -6 -6 -5 ------- Run | Yrd Mat Mat Min Mat Fac Fac Ext Cet Fac Combat Hostiles Destroyed 173 | . 11 27 . 20 19 25 25 1 45 Melee 2 | . . . . . . 1 . . 1 Guns 47 | . . . . . . . 4 . 43 Cannons 91 | . 11 21 . 20 13 14 11 1 . AOE 33 | . . 6 . . 6 10 10 . 1 Classes Destroyed 19 | . 5 4 . . 4 1 1 . 4 Worker 8 | . . 1 . 1 . 3 1 . 2 Builder 13 | . . 3 1 1 1 1 6 . . Tunneler 4 | . . . . . . 2 2 . . Hauler 10 | . 2 2 . 1 1 3 1 . . Recycler 17 | . 1 5 . 1 2 5 2 . 1 Carrier 1 | . . . . . . . . . 1 Mechanic 1 | . . 1 . . . . . . . Operator 2 | . . . . . 1 . 1 . . Watcher 3 | . 2 . . . 1 . . . . Swarmer 59 | . 6 17 . 7 3 13 8 . 5 Saboteur 2 | . . . . . . . . . 2 Grunt 50 | . 5 4 . 9 4 3 5 . 20 Brawler 4 | . . . . . . . . . 4 Duelist 6 | . . . . . 1 1 . . 4 Protector 1 | . . . . . . . . . 1 Sentry 30 | . . 6 . 4 7 1 9 . 3 Hunter 5 | . . . . . 1 3 . . 1 Programmer 13 | . . . . . 3 4 1 . 5 Behemoth 2 | . . . . . . . 2 . . Cetus Guard 1 | . . . . . . . . 1 . Thug 2 | . . . . . . . . 2 . Guerrilla 1 | . . . . . . . . . 1 Best Kill Streak 13 | . 4 13 1 6 4 9 8 1 12 Combat Bots Only 12 | . 3 8 . 5 4 6 5 1 12 Max Kills in Single Turn 7 | . 2 3 1 2 2 6 7 1 3 Gunslinging 1 | . . . . . . . . . 1 Exploded 5 | . . 2 . . 2 5 4 . 1 Melee 1 | . . . . . . 1 . . 1 Uniques/NPCs Destroyed . | . . . . . . . . . . Combat | -11 -10 -9 -9 -8 -7 -6 -6 -6 -5 -------- Run | Yrd Mat Mat Min Mat Fac Fac Ext Cet Fac Hostile Shots Fired 1459 | . 31 138 . 56 226 143 389 15 461 Missed 426 | . 8 28 . 16 89 40 136 5 104 Damage Taken 14260 | . 307 1222 . 494 1167 1167 2322 343 7238 Core 1480 | . 10 93 . 43 66 82 124 44 1018 Absorbed by Shields 1554 | . . . . . 240 412 838 64 . Reduced by Siege Mode 200 | . . . . . . . . . 200 Ignored by Resistances 441 | . . . . 27 49 . 215 91 59 Regen/Repaired (Parts) 482 | . 86 396 . . . . . . . Core Remaining (%) 87 | 100 96 . 76 92 90 . . 70 . Volleys Fired 468 | . 33 75 1 42 45 57 90 11 114 Largest 3 | . 2 2 2 2 2 2 2 2 3 Hottest 100 | . 78 78 78 96 96 96 96 92 100 Shots Fired 985 | . 66 141 2 84 83 105 169 20 315 Gun 362 | . . . . . . . 46 9 307 Cannon 573 | . 66 135 2 84 77 100 95 8 6 Launcher 50 | . . 6 . . 6 5 28 3 2 Special . | . . . . . . . . . . Kinetic 935 | . 66 135 2 84 77 100 141 17 313 Thermal . | . . . . . . . . . . Explosive 50 | . . 6 . . 6 5 28 3 2 Electromagnetic . | . . . . . . . . . . Robot Hit Streak 31 | . 8 17 1 9 19 16 27 5 31 Robot Miss Streak 7 | . 4 7 1 3 1 2 3 2 3 Penetration Max 1 | . . . . . . . 1 . 1 Secondary Targets 14 | . . . . . . . . . 14 Max Gunslinging Chain 1 | . . . . . . . . . 1 Shots Hit Robots 709 | . 40 76 1 56 69 88 125 13 241 Core Hits 414 | . 17 39 1 31 38 54 90 15 129 Critical Kills 17 | . . . . . . . . 1 16 Critical Parts Destroyed 24 | . . . . . . . . 3 21 Critical Strikes 66 | . . 6 . 3 4 5 4 4 40 Destroy 42 | . . . . . . . . 4 38 Blast 22 | . . 6 . 3 4 4 4 . 1 Sever 2 | . . . . . . 1 . . 1 Melee Attacks 33 | . . . . 3 9 13 . . 8 Impact 3 | . . . . 3 . . . . . Slashing 30 | . . . . . 9 13 . . 8 Piercing . | . . . . . . . . . . Sneak Attacks 8 | . . . . . 3 5 . . . Combat Hostiles . | . . . . . . . . . . Follow-up Attacks . | . . . . . . . . . . Damage Inflicted 24335 | . 849 2358 20 1482 2495 3785 5344 496 7506 Guns 7400 | . . . . . . . 868 201 6331 Cannons 10038 | . 841 1602 20 1464 1691 2050 1953 139 278 Explosions 5942 | . . 743 . . 513 1194 2503 156 833 Melee 834 | . . . . . 291 495 . . 48 Ramming 121 | . 8 13 . 18 . 46 20 . 16 Kinetic 17438 | . 841 1602 20 1464 1691 2050 2821 340 6609 Thermal 737 | . . . . . . 605 . . 132 Explosive 5205 | . . 743 . . 513 589 2503 156 701 Electromagnetic . | . . . . . . . . . . Impact . | . . . . . . . . . . Slashing 834 | . . . . . 291 495 . . 48 Piercing . | . . . . . . . . . . Highest Corruption 19 | . . 3 3 . 1 6 16 16 19 Average Corruption 3 | . . 2 3 . 1 2 3 16 3 Corruption Purged 5 | . . . . . . 5 . . . Corruption Blocked . | . . . . . . . . . . Effects 133 | . . 3 13 . 6 22 48 20 21 Message Errors 31 | . . . 4 . 3 4 11 3 6 Matter Fused 43 | . . 2 3 . . 8 15 9 6 Heat Flow Errors 13 | . . . 2 . 1 1 4 5 . Energy Discharges 14 | . . . 2 . . 3 6 1 2 Parts Rejected 3 | . . . . . 1 . 1 . 1 Parts Fused 1 | . . . . . . . 1 . . Data Loss (minor) 12 | . . . 1 . 1 4 4 . 2 Data Loss (major) 4 | . . 1 1 . . . 1 . 1 Misfires 5 | . . . . . . . 3 2 . Weapon Failures 7 | . . . . . . 2 2 . 3 Overload Shots . | . . . . . . . . . . Overflow Damage 691 | . 3 148 . 3 64 371 75 . 27 Projectiles 176 | . 3 25 . 3 13 70 35 . 27 Explosions 368 | . . 123 . . 36 169 40 . . Melee 147 | . . . . . 15 132 . . . Knockbacks 71 | . 11 11 . 15 10 16 5 1 2 Impact 2 | . 1 . . . . . 1 . . Kinetic 64 | . 9 10 . 13 10 16 4 1 1 Secondary 5 | . 1 1 . 2 . . . . 1 Self-Inflicted Damage 309 | . . 146 . . . 48 43 . 72 Shots 7 | . . 3 . . . 1 1 . 2 Rammed 10 | . . 3 . 3 . 1 1 . 2 Targets Rammed 13 | . 1 3 . 4 . 1 2 . 2 Kicked 1 | . 1 . . . . . . . . Crushed 2 | . . . . 1 . . 1 . . Highest Temperature 564 | . 372 338 250 252 417 256 301 251 564 Average Temperature 87 | . 98 75 94 77 84 64 85 91 104 Received Heat Transfer 3170 | . 126 210 . 270 350 30 413 4 1767 Effects 15 | . 2 1 . . 1 . 5 3 3 Shutdowns 3 | . 1 1 . . . . . . 1 Energy Bleed 4 | . 1 . . . . . 2 1 . Interference 5 | . . . . . . . 3 2 . Short Circuit 1 | . . . . . . . . . 1 Damage (minor) 2 | . . . . . 1 . . . 1 Siege Activations 3 | . . . . . . . . . 3 Total Turns 94 | . . . . . . . . . 94 Longest Duration 49 | . . . . . . . . . 49 Robots Corrupted . | . . . . . . . . . . Combat Hostiles . | . . . . . . . . . . Parts Fried 4 | . . 1 . . . 2 . 1 . Impact Corruptions 2 | . . 1 . . . 1 . . . Robots Melted . | . . . . . . . . . . Combat Hostiles . | . . . . . . . . . . Parts Melted 1 | . . . . . . . 1 . . Heat Transferred 450 | . . . . . . 350 . . 100 Parts Sabotaged 7 | . . . . . . . . . 7 Parts Stolen . | . . . . . . . . . . Parts Stripped . | . . . . . . . . . . Power Chain Reactions . | . . . . . . . . . . Alert | -11 -10 -9 -9 -8 -7 -6 -6 -6 -5 ------- Run | Yrd Mat Mat Min Mat Fac Fac Ext Cet Fac Peak Influence 2903 | . 197 530 120 363 353 354 484 400 2903 Initial 270 | . . 52 115 . 164 153 42 270 184 Average 322 | . 63 289 100 120 232 212 197 372 1239 Maximum Alert Level 5 | . . 2 . 1 1 1 2 2 5 Low Security (%) 44 | . 100 17 100 71 31 29 56 . 9 Level 1 43 | . . 78 . 28 68 70 36 99 6 Level 2 3 | . . 4 . . . . 7 . 13 Level 3 3 | . . . . . . . . . 28 Level 4 . | . . . . . . . . . 3 Level 5 1 | . . . . . . . . . 8 High Security 3 | . . . . . . . . . 29 Max Security . | . . . . . . . . . . Squads Dispatched 38 | . 2 3 . 2 5 6 2 . 18 Investigation 7 | . 2 1 . . 1 . 2 . 1 Extermination 8 | . . . . . 3 4 . . 1 Reinforcement 8 | . . 2 . 2 1 2 . . 1 Assault 15 | . . . . . . . . . 15 Garrison . | . . . . . . . . . . Intercept . | . . . . . . . . . . Searches Triggered . | . . . . . . . . . . Construction Impeded 1 | . . . . 1 . . . . . Haulers Reinforced 2 | . . . . . . 1 . . 1 Active Scanning Responses . | . . . . . . . . . . Cargo Convoy Interrupts . | . . . . . . . . . . Stealth | -11 -10 -9 -9 -8 -7 -6 -6 -6 -5 --------- Run | Yrd Mat Mat Min Mat Fac Fac Ext Cet Fac Distress Signals 15 | . . 6 . 1 2 . 2 2 2 Communications Jammed . | . . . . . . . . . . Distress Signals . | . . . . . . . . . . Times Spotted 330 | . 19 51 3 23 27 22 42 9 134 Peak Tracking Total 30 | . 3 7 3 4 5 4 8 5 30 Tactical Retreats 19 | . 1 5 . . 1 . 1 . 11 Traps | -11 -10 -9 -9 -8 -7 -6 -6 -6 -5 ------- Run | Yrd Mat Mat Min Mat Fac Fac Ext Cet Fac Traps Triggered 19 | . 7 2 . . 3 1 3 . 3 Indirectly . | . . . . . . . . . . Trap Hack Attempts . | . . . . . . . . . . Triggered . | . . . . . . . . . . Disarmed . | . . . . . . . . . . Reprogrammed . | . . . . . . . . . . Reused . | . . . . . . . . . . Traps Extracted . | . . . . . . . . . . Installed . | . . . . . . . . . . Triggered . | . . . . . . . . . . Machines | -11 -10 -9 -9 -8 -7 -6 -6 -6 -5 ---------- Run | Yrd Mat Mat Min Mat Fac Fac Ext Cet Fac Machines Disabled 42 | . 1 3 . 2 1 5 3 . 27 Max in Single Turn 3 | . 1 1 . 1 1 3 1 . 2 Garrison Access 2 | . . . . . . 1 . . 1 Machines Repaired . | . . . . . . . . . . Machines Dismantled . | . . . . . . . . . . Machines Sabotaged . | . . . . . . . . . . Overloaded Fab Kills . | . . . . . . . . . . Hacking | -11 -10 -9 -9 -8 -7 -6 -6 -6 -5 --------- Run | Yrd Mat Mat Min Mat Fac Fac Ext Cet Fac Machines Accessed 39 | . 5 7 . 4 2 8 8 1 4 Terminals 31 | . 4 5 . 4 2 6 8 1 1 Fabricators 1 | . . . . . . 1 . . . Repair Stations 5 | . 1 2 . . . . . . 2 Recycling Units . | . . . . . . . . . . Scanalyzers . | . . . . . . . . . . Garrison Access 2 | . . . . . . 1 . . 1 Total Hacks 107 | . 18 25 . 14 5 16 16 1 12 Successful 46 | . 7 17 . 6 . 6 5 1 4 Failed 60 | . 10 8 . 8 5 10 11 . 8 Catastrophic 7 | . . 1 . 2 . 2 2 . . Database Lockouts 1 | . 1 . . . . . . . . Manual 55 | . 15 8 . 13 5 10 . 1 3 Terminals 81 | . 15 13 . 14 5 14 16 1 3 Fabricators 1 | . . . . . . 1 . . . Repair Stations 23 | . 3 12 . . . . . . 8 Recycling Units . | . . . . . . . . . . Scanalyzers . | . . . . . . . . . . Garrison Access 2 | . . . . . . 1 . . 1 Terminal Hacks 21 | . 2 6 . 3 . 3 5 1 1 Robot Analysis 3 | . 1 1 . 1 . . . . . Open Door 6 | . . . . . . 1 4 1 . Repair Station Index 1 | . . 1 . . . . . . . Alert Level 3 | . . 1 . 1 . . 1 . . Unreport Threat 5 | . . 2 . 1 . 1 . . 1 Locate Traps 1 | . 1 . . . . . . . . Hauler Manifests 1 | . . 1 . . . . . . . Registered Components 1 | . . . . . . 1 . . . Fabricator Hacks . | . . . . . . . . . . Repair Station Hacks 13 | . 2 9 . . . . . . 2 Scan Component 8 | . 1 5 . . . . . . 2 Repair 5 | . 1 4 . . . . . . . Recycling Unit Hacks . | . . . . . . . . . . Scanalyzer . | . . . . . . . . . . Garrison Access Hacks 2 | . . . . . . 1 . . 1 Seal Access 2 | . . . . . . 1 . . 1 Unauthorized Hacks 10 | . 3 2 . 3 . 2 . . . Terminals 10 | . 3 2 . 3 . 2 . . . Botnet 10 | . 3 2 . 3 . 2 . . . Fabricators . | . . . . . . . . . . Repair Stations . | . . . . . . . . . . Recycling Units . | . . . . . . . . . . Scanalyzers . | . . . . . . . . . . Garrison Access . | . . . . . . . . . . Data Cores Recovered . | . . . . . . . . . . Used . | . . . . . . . . . . Hacking Detections 32 | . 5 6 . 4 2 5 6 1 3 Full Trace Events 6 | . 2 1 . . . . 2 . 1 Feedback Events . | . . . . . . . . . . Feedback Blocked . | . . . . . . . . . . Robot Schematics Acquired . | . . . . . . . . . . Robots Built . | . . . . . . . . . . Authchips . | . . . . . . . . . . Time . | . . . . . . . . . . Total Robot Build Rating . | . . . . . . . . . . Part Schematics Acquired . | . . . . . . . . . . Parts Built . | . . . . . . . . . . Authchips . | . . . . . . . . . . Time . | . . . . . . . . . . Total Part Build Rating . | . . . . . . . . . . Parts Repaired 5 | . 1 4 . . . . . . . Time 160 | . 32 128 . . . . . . . Parts Recycled . | . . . . . . . . . . Recycled Matter . | . . . . . . . . . . Retrieved Matter . | . . . . . . . . . . Retrieved Components . | . . . . . . . . . . Parts Scanalyzed . | . . . . . . . . . . Part Schematics Acquired . | . . . . . . . . . . Parts Damaged . | . . . . . . . . . . Bothacking | -11 -10 -9 -9 -8 -7 -6 -6 -6 -5 ------------ Run | Yrd Mat Mat Min Mat Fac Fac Ext Cet Fac Used RIF Installer . | . . . . . . . . . . Robots Hacked . | . . . . . . . . . . Non-combat . | . . . . . . . . . . Combat . | . . . . . . . . . . Robot Hacks Applied . | . . . . . . . . . . Relay Couplers Released . | . . . . . . . . . . Fabnet Peak Effective % . | . . . . . . . . . . Robots Rewired 25 | . . . . . . . 25 . . Allies Hacked . | . . . . . . . . . . Hacks Repelled . | . . . . . . . . . . Allies | -11 -10 -9 -9 -8 -7 -6 -6 -6 -5 -------- Run | Yrd Mat Mat Min Mat Fac Fac Ext Cet Fac Total Allies 47 | . . . . . . 12 30 5 . Largest Group 18 | . . . . . . 4 18 18 13 Highest-Rated Group 945 | . . . . . . 113 649 945 822 Highest-Rated Ally 159 | . . . . . . 31 159 159 135 Total Orders 5 | . . . . . . . . . 5 STAY 3 | . . . . . . . . . 3 FOLLOW 2 | . . . . . . . . . 2 Ally Attacks 343 | . . . . . . 40 125 56 122 Total Damage 9654 | . . . . . . 825 2569 1369 4891 Kills 63 | . . . . . . 1 12 11 39 Allies Corrupted 1 | . . . . . . . . 1 . Allies Melted . | . . . . . . . . . . Intel | -11 -10 -9 -9 -8 -7 -6 -6 -6 -5 ------- Run | Yrd Mat Mat Min Mat Fac Fac Ext Cet Fac Robot Analysis Total 3 | . 1 1 . 1 . . . . . Derelict Logs Recovered . | . . . . . . . . . . Drone Launches . | . . . . . . . . . . Drone Recoveries . | . . . . . . . . . . Exploration | -11 -10 -9 -9 -8 -7 -6 -6 -6 -5 ------------- Run | Yrd Mat Mat Min Mat Fac Fac Ext Cet Fac Turns Passed 13886 | . 1960 1734 461 963 1973 2231 2388 467 1709 Spaces Moved 6382 | 1 949 742 296 451 939 1219 742 240 803 Core . | . . . . . . . . . . Treads 3728 | . . 676 187 451 686 . 693 240 795 Legs 1016 | 1 949 66 . . . . . . . Wheels 1638 | . . . 109 . 253 1219 49 . 8 Hover . | . . . . . . . . . . Flight . | . . . . . . . . . . Fastest Speed 120 | 120 120 160 135 160 160 120 131 155 155 Average Speed 172 | 120 181 167 150 160 178 156 218 163 158 Slowest Speed 330 | 120 330 240 160 240 240 260 237 237 243 Overloaded Moves . | . . . . . . . . . . Propulsion Burnouts . | . . . . . . . . . . Robots Hopped . | . . . . . . . . . . Cave-ins Triggered . | . . . . . . . . . . Exploration Rate (%) 51 | 2 90 74 44 46 31 28 77 89 29 Regions Visited 9 Branch Regions 3 Pre-discovered Areas . | . . . . . . . . . . Known Exits Taken . | . . . . . . . . . . Unknown Exits Taken 9 | 1 1 1 1 1 1 1 1 1 . Scrap Searched 1 | . . . 1 . . . . . . Spaces Dug 20 | . . . . 3 5 5 . . 7 Terrain Destroyed 400 | . 1 65 . 16 40 70 76 28 104 Melee 20 | . . . . 3 5 5 . . 7 Projectile 81 | . 1 5 . 13 1 9 9 2 41 AOE 297 | . . 60 . . 34 56 67 26 54 Terrain Rammed . | . . . . . . . . . . Walls Destroyed . | . . . . . . . . . . Machines Disabled . | . . . . . . . . . . Actions | -11 -10 -9 -9 -8 -7 -6 -6 -6 -5 --------- Run | Yrd Mat Mat Min Mat Fac Fac Ext Cet Fac Total 8333 | . 1119 1090 308 604 1128 1404 1331 300 1049 Wait 581 | . 82 197 11 45 66 47 77 20 36 Move 6373 | . 948 741 295 450 938 1218 741 239 803 Hop . | . . . . . . . . . . Pick Up 106 | . 15 13 . 11 11 14 20 6 16 Fast Attach 61 | . 17 10 . 4 5 9 7 4 5 Attach 54 | . . 6 . 2 7 8 9 2 20 Detach 12 | . . 3 . 1 2 4 . 2 . Swap 173 | . 7 21 1 23 34 21 30 6 30 Drop 121 | . 16 21 . 19 11 12 17 10 15 Fire 468 | . 33 75 1 42 45 57 90 11 114 Melee 33 | . . . . 3 9 13 . . 8 Ram 1 | . . . . . . 1 . . . Kick 1 | . 1 . . . . . . . . Crush 11 | . . 3 . 4 . . 2 . 2 Escape Stasis 18 | . . . . . . . 18 . . Rewire 320 | . . . . . . . 320 . . Trap . | . . . . . . . . . . Miscellaneous . | . . . . . . . . . . Route ------- -11/Scrapyard -10/Materials (discovered 4 exits: *Mat x3 / [*Min]) -9/Materials (discovered 3 exits: *Mat / [*Min x2]) -9/Mines -8/Materials (discovered 2 exits: *Fac x2) -7/Factory (discovered 3 exits: *Fac x2 / [*Low]) -6/Factory (discovered 3 exits: *Fac / [*Low] / *Ext) -6/Extension (discovered 2 exits: *Fac / *Cet) -6/Cetus (discovered 2 exits: *Fac / [*Arc]) -5/Factory (discovered 1 exit: [*Fac]) History --------- Turn | Location | Event 1 | -11/Scrapyard | Discovered new exit (range 0) 1 | -11/Scrapyard | Entered Materials 136 | -10/Materials | Discovered new exit (range 8) 164 | -10/Materials | Discovered new exit (range 14) 309 | -10/Materials | Build established: Mutant 598 | -10/Materials | Discovered new exit (range 15) 1211 | -10/Materials | Repaired Imp. Light Cannon 1513 | -10/Materials | Discovered new exit (range 9) 1517 | -10/Materials | Central database locked down 1961 | -10/Materials | Entered another Materials area 1961 | -9/Materials | Evolved 2 slots: Utility x2 2534 | -9/Materials | Destroyed 8 combat bots 2671 | -9/Materials | Repaired Imp. Treads 2704 | -9/Materials | Repaired Imp. Treads 2760 | -9/Materials | Discovered new exit (range 10) 2882 | -9/Materials | Repaired Imp. Light Cannon 2916 | -9/Materials | Repaired Imp. Light Cannon 3012 | -9/Materials | Discovered new exit (range 13) 3143 | -9/Materials | Discovered new exit (range 16) 3695 | -9/Materials | Entered Mines 3978 | -9/Mines | Assembled infested the area 3983 | -9/Mines | Assisted by a Guerilla fighting off Assembled 4062 | -9/Mines | Discovered new exit (range 8) 4156 | -9/Mines | Entered Materials 4156 | -8/Materials | Evolved 2 slots: Propulsion x1, Utility x1 4639 | -8/Materials | Discovered new exit (range 10) 5035 | -8/Materials | Discovered new exit (range 16) 5119 | -8/Materials | Entered Factory 5119 | -7/Factory | Evolved 2 slots: Propulsion x1, Utility x1 5543 | -7/Factory | Discovered new exit (range 15) 5921 | -7/Factory | Discovered new exit (range 16) 6246 | -7/Factory | Discovered new exit (range 6) 7092 | -7/Factory | Entered another Factory area 7092 | -6/Factory | Evolved 2 slots: Propulsion x1, Utility x1 7665 | -6/Factory | Lost 4 parts (3n1u) 7781 | -6/Factory | Discovered new exit (range 3) 7781 | -6/Factory | Discovered new exit (range 21) 8066 | -6/Factory | Found Launcher Loader 8618 | -6/Factory | Build established: Scavenger-Mutant 8924 | -6/Factory | Spotted B-75 Beast 8985 | -6/Factory | Lost 8 allies 9090 | -6/Factory | Discovered new exit (range 6) 9323 | -6/Factory | Entered Extension 9649 | -6/Extension | Rescued a captive Derelict 9659 | -6/Extension | Rescued a captive Derelict 9726 | -6/Extension | Build established: Mutant 9973 | -6/Extension | Disrupted transfer network 10105 | -6/Extension | Lost 4 allies 10220 | -6/Extension | Spotted B-75 Beast 10305 | -6/Extension | Lost 4 allies 10329 | -6/Extension | Destroyed B-75 Beast 10344 | -6/Extension | Spotted B-75 Beast 10531 | -6/Extension | Destroyed B-75 Beast 10763 | -6/Extension | Rescued A7 11187 | -6/Extension | Build established: Commander-Mutant 11281 | -6/Extension | Rescued a captive Derelict 11419 | -6/Extension | Rescued a captive Derelict 11641 | -6/Extension | Discovered new exit (range 10) 11643 | -6/Extension | Discovered new exit (range 6) 11711 | -6/Extension | System corruption reached 10% 11711 | -6/Extension | Entered Cetus 11711 | -6/Cetus | Accompanied by 18 allies (A7) 11716 | -6/Cetus | Acquired a Cetus Manufacturing Module code from A7 11741 | -6/Cetus | Spotted Cetus Guard 11741 | -6/Cetus | Spotted Cetus Guard 11745 | -6/Cetus | Spotted Cetus Guard 11746 | -6/Cetus | Spotted Cetus Guard 11748 | -6/Cetus | Allies destroyed Cetus Guard 11758 | -6/Cetus | Allies destroyed Cetus Guard 11760 | -6/Cetus | Allies destroyed Cetus Guard 11764 | -6/Cetus | Allies destroyed Cetus Guard 11792 | -6/Cetus | Lost 4 allies 11863 | -6/Cetus | Started Cetus Manufacturing Module 11882 | -6/Cetus | Escorted A7 to Cetus Mainframe 11888 | -6/Cetus | Manufactured an Enhanced Grunt 11913 | -6/Cetus | Manufactured an Enhanced Grunt 11938 | -6/Cetus | Manufactured an Enhanced Grunt 11963 | -6/Cetus | Manufactured an Enhanced Grunt 11988 | -6/Cetus | Manufactured an Enhanced Grunt 12030 | -6/Cetus | Discovered new exit (range 16) 12094 | -6/Cetus | Spotted Cetus Guard 12094 | -6/Cetus | Spotted Cetus Guard 12099 | -6/Cetus | Spotted Cetus Guard 12102 | -6/Cetus | Spotted Cetus Guard 12107 | -6/Cetus | Allies destroyed Cetus Guard 12118 | -6/Cetus | Allies destroyed Cetus Guard 12118 | -6/Cetus | Discovered new exit (range 15) 12121 | -6/Cetus | Allies destroyed Cetus Guard 12123 | -6/Cetus | Destroyed Cetus Guard 12130 | -6/Cetus | Met Revision 17 12160 | -6/Cetus | Lost 4 allies 12178 | -6/Cetus | Entered Factory 12178 | -5/Factory | Accompanied by 13 allies (A7) 12178 | -5/Factory | Evolved 2 slots: Utility x1, Weapon x1 12183 | -5/Factory | Received a hacking code to weaken MAIN.C 12192 | -5/Factory | Discovered new exit (range 18) 12521 | -5/Factory | Build established: Commander-Gunner 13216 | -5/Factory | Spotted B-75 Beast 13246 | -5/Factory | Allies destroyed B-75 Beast 13378 | -5/Factory | First assault squad dispatched 13387 | -5/Factory | High security lockdown imminent 13467 | -5/Factory | High security lockdown engaged 13540 | -5/Factory | Build established: Scavenger-Gunner 13708 | -5/Factory | Destroyed 12 combat bots 13832 | -5/Factory | Destroyed 12 combat bots 13874 | -5/Factory | System corruption reached 10% 13883 | -5/Factory | Core integrity fell below 50% 13886 | -5/Factory | Core integrity fell below 20% 13887 | -5/Factory | Destroyed by P-70 Sage with High-powered Shock Rifle Last Messages --------------- 13881_ Imp. Medium Armor Plating blown off. 13881_ Arm. Medium Treads blown off. 13881_ Focal Shield blown off. 13881_ E-15 Imp destroyed. 13881_ P-70 Sage resets P-70 Sage, system corruption cleaned. 13882_ Antimatter Reactor destroyed. 13882_ Critical hit (Burn: +37). 13882_ Huge Storage Unit destroyed. 13882_ P-70 Sage resets L-41 Fighter, system corruption cleaned. 13882_ Lrn. Tractor Beam destroyed. 13882_ Adv. Targeting Computer destroyed. 13883_ The unstable cave ceiling collapses. 13883_ P-70 Sage resets H-66 Slayer, system corruption cleaned. 13885_ The unstable cave ceiling collapses. 13885_ P-70 Sage resets P-70 Sage, system corruption cleaned. 13885_ Critical hit (Burn: +37). 13886_ P-70 Sage resets P-70 Sage, system corruption cleaned. 13886_ Penetrated by Slug. 13886_ P-70 Sage resets H-66 Slayer, system corruption cleaned. 13886_ M-28 Smith repairs G-50 Soldier. Map ----- +----------------------------------------------------+ | ?????#!# #?????# #? ]??????????????????? | | ?????#=!####???# #? ????????????????? | | ??####""##"##### #? ???????????????? | | ??# " # # #??????????????? | | ??# "" ! # # ? #??????????????? | | ??# "" = # # ?? ???????????????? | | ??# "" =%!!! #^^ ^ # ???????????????? | | ??# =!/%%=/[%%" """#???????????????????? | | ??# "" !/!=%%+!=%" +???????????????? | | ??# """ =! "=!#==*%" "###???????????????????? | | ??# """ " # ##?????????????????????? | | ??# #?? /#??????????????????????? | | ??# *! " #????##%#??????????????????????? | | ??# ! """ ##???#;=#?###??????????????????? | | ??# ! %== "#??##;%##; #??????????????????? | | ??########*!########=[[/*;#???????????????????? | | ?????????# ^ ==[!=*[#########%[ ?????? | | ?????????# ^![!!==![=!%[%=%%![[=?????????? | | ?????????# ^!!/!pi=!!"##?????????????????? | | ??????#####""###"###==ph/###??????????????????? | | ??????# #### g ###???????????????????? | | ??????# """ #?## !gphg #???????????????????? | | ??????#! """"" #?# gg%pi #???????????????????? | | ??????# """"" #?##impgp #???????????????????? | | ??????#! #?# pglg"m##??????????????????? | | ??????# """ #?## g!@! #??????????????????? | | ??????# """"" #?## h%=!pp##??????????????????? | | ??????# """"" #??# #???????????????????? | | ??????# #??### ####???????????????????? | | ??????##########????####??????????????????????? | | ??????????????????????????????????????????????? | | ??????????????????????????????????????????????? | | ??????????????????????????????????????????????? | | ??????????????????????????????????????????????? | | ??????????????????????????????????????????????? | | ??????????????????????????????????????????????? | | ??????????????????????????????????????????????? | | ??????????????????????????????????????????????? | | ??????????????????????????????????????????????? | | ??????????????????????????????????????????????? | | ??????????????????????????????????????????????? | | ??????????????????????????????????????????????? | | ??????????????????????????????????????????????? | | ??????????????????????????????????????????????? | | ??????????????????????????????????????????????? | | ??????????????????????????????????????????????? | | ??????????????????????????????????????????????? | | ??????????????????????????????????????????????? | | ??????????????????????????????????????????????? | | ??????????????????????????????????????????????? | +----------------------------------------------------+ Best States ------------- Heat Dissipation 48 Coolant Potential 65 Energy Generation 25 Energy Capacity 350 Matter Stores 300 Matter Capacity 300 Sight Range 22 Robot Scan Range 16 Terrain Scan Density 10 Armor Coverage 825 Resistance: KI 20 Weapon Cycling 20 Evasion (%) 55 Targeting Accuracy 16 Core Analysis 6 Recoil Reduction 5 Offensive Hacking 24 Item Schematics ----------------- None Robot Schematics ------------------ None Fabricated ------------ Nothing Alien Tech Used ----------------- None Achievements -------------- None Challenges ------------ None Game ------ Seed EnhancedLightningInterrupter Manual? 0 Play Time 02:44:04 Cumulative 121.8 hours Start 2024.07.29 @ 20:31:29 End 2024.07.31 @ 13:11:34 Sessions 5 Manual Loads 0 Difficulty Rogue Special Mode None Game No. 62 Rogue 60 Adventurer 0 Explorer 2 Win Type - Total 8 Types 8/0/0/0/0/0/0/0/0 Lore% 44 Gallery% 64 Achievement% 57 Wizard Run 0 Options --------- Layout 0 ASCII 0 Keyboard 1 Movement Numpad Keybinds 0 Fullscreen 1 Font 24/Smallcaps Map View 76x50 Zoom Use 0% Tactical HUD 1 Map Filters NONE Filters NONE Steam 1 RUN: 21d492ad-6a78-4c6d-b0ca-b972efa03434